Cogmind - Beta 15 @@@ ROGUE MODE // 2025.06.02 @ 22:38:50 Player: Tenderz Result: Destroyed by 8R-AWN with 8R-AWN's Boregun Performance ------------- Evolutions (0) 0 Regions Visited (3) 600 Robots Destroyed (18) 90 Value Destroyed (400) 400 Prototype IDs (23) 460 Alien Tech Used (0) 0 Bonus (300) 300 TOTAL SCORE: 1850 Bonus ------- Aligned with FarCom 300 Cogmind --------- Core Integrity 0/250 Matter 119/300 Energy 60/100 System Corruption 0% Temperature Cool (0) Movement Walking (260) Ox2 Location -10/Exiles Parts ------- > --- POWER (1) -------- (None) > --- PROPULSION (2) --- Light Treads Aluminum Leg > --- UTILITY (2) ------ Large Storage Unit Core Shielding > --- WEAPON (2) ------- Light Cannon > --- INVENTORY (15) --- High-capacity Matter Pod (200) High-capacity Matter Pod (114) Sensor Array EM Pulse Gun EM Pulse Gun Assault Rifle Light Cannon Peak State ------------ > --- POWER ------------ Ion Engine > --- PROPULSION ------- Light Treads Light Treads > --- UTILITY ---------- Large Storage Unit Propulsion Shielding > --- WEAPON ----------- AWS/Gauss > --- INVENTORY -------- Light Treads Aluminum Leg Flying Fortress v7 High-capacity Matter Pod Sensor Array Seismic Detector ECM Suite Core Shielding Light Armor Plating Assault Rifle Heavy Assault Rifle Light Cannon [Rating: 25] Favorites ----------- Power Ion Engine Engine Ion Engine Propulsion Light Treads Treads Light Treads Leg Aluminum Leg Utility Large Storage Unit Device Seismic Detector Storage Large Storage Unit Protection Propulsion Shielding Weapon Light Cannon Energy Gun EM Pulse Gun Ballistic Gun AWS/Gauss Ballistic Cannon Light Cannon Build | -11 -10 -10 -10 ------- Run | Yrd Mat Min Exi Slots Evolved . | . . . . Power . | . . . . Propulsion . | . . . . Utility . | . . . . Weapon . | . . . . Parts Attached 26 | 7 7 4 8 Power 3 | 1 1 . 1 Engine 3 | 1 1 . 1 Core . | . . . . Reactor . | . . . . Propulsion 4 | 2 . . 2 Treads 3 | 2 . . 1 Leg 1 | . . . 1 Wheel . | . . . . Hover . | . . . . Flight . | . . . . Utility 9 | 2 2 3 2 Device 2 | 1 . 1 . Storage 2 | 1 1 . . Processor . | . . . . Hackware . | . . . . Protection 5 | . 1 2 2 Artifact . | . . . . Weapon 10 | 2 4 1 3 Energy Gun 3 | . 2 1 . Energy Cannon . | . . . . Ballistic Gun 4 | 2 . . 2 Ballistic Cannon 3 | . 2 . 1 Launcher . | . . . . Special Weapon . | . . . . Impact Weapon . | . . . . Slashing Weapon . | . . . . Piercing Weapon . | . . . . Special Melee Weapon . | . . . . Unidentified Prototypes . | . . . . Parts Lost 10 | . . 2 8 Power 2 | . . 1 1 Propulsion 2 | . . . 2 Utility 3 | . . . 3 Weapon 3 | . . 1 2 Highest Loss Streak 8 | . . 2 8 To Critical Strikes 4 | . . . 4 Average Backups 12 | 2 10 14 13 Power . | . . 1 1 Propulsion 2 | 1 2 3 1 Utility 4 | . 2 5 5 Weapon 4 | . 4 5 4 Tool/Special . | . . . . Unused Backups 16 | . 4 4 8 Power 3 | . . . 3 Propulsion 4 | . . 3 1 Utility 7 | . 2 1 4 Weapon 2 | . 2 . . Tool/Special . | . . . . Average Slot Usage (%) 94 | . 100 93 92 Engine 12 | . 14 8 13 Treads 27 | . 28 28 27 Device 3 | . 12 7 . Storage 14 | . 14 14 14 Protection 10 | . 1 6 14 Energy Gun 1 | . 9 . . Ballistic Gun 5 | . 6 . 7 Ballistic Cannon 16 | . 11 27 14 Peak Build Rating 25 | 7 8 8 25 Average Rating 11 | 4 7 7 14 On Entrance 5 | . 7 8 7 Naked Turns . | . . . . Heaviest Build 36 | 12 32 32 36 Greatest Support 40 | 40 40 40 40 Greatest Overweight (x) 1 | . . . 1 Average Overweight (x) . | . . . . Largest Inventory Capacity 15 | 8 15 15 15 Average Capacity 14 | 6 12 15 15 Most Carried 15 | 4 15 15 15 Average Carried 13 | 2 10 14 13 Final Capacity 15 | 8 15 15 15 Final Carried 15 | 4 15 15 7 Class Distribution -------------------- 100% | Mutant Dominant Class ---------------- Mutant | -10/Materials Mutant | -10/Mines Mutant | -10/Exiles Resources | -11 -10 -10 -10 ----------- Run | Yrd Mat Min Exi Matter Collected 1038 | 282 201 312 243 Remotely . | . . . . Salvage Created 620 | 79 392 122 27 Parts 41 | 7 27 7 . Haulers Intercepted 1 | . 1 . . Recyclers Shooed 2 | . 1 1 . Parts Field Recycled . | . . . . Retrieved Matter . | . . . . Parts Self-Destructed . | . . . . Prevented . | . . . . Kills | -11 -10 -10 -10 ------- Run | Yrd Mat Min Exi Combat Hostiles Destroyed 13 | . 7 3 3 Guns 5 | . 2 . 3 Cannons 7 | . 4 3 . AOE 1 | . 1 . . Classes Destroyed 9 | 2 5 1 1 Tunneler 1 | 1 . . . Hauler 1 | . 1 . . Recycler 2 | 1 1 . . Operator 1 | . 1 . . Watcher 3 | . 3 . . Swarmer 3 | . 3 . . Grunt 6 | . 4 2 . Sentry 1 | . . 1 . Assembled 3 | . . . 3 Best Kill Streak 5 | 2 5 2 3 Combat Bots Only 3 | . 3 2 3 Max Kills in Single Turn 1 | 1 1 1 1 Gunslinging . | . . . . Exploded 1 | . 1 . . Melee . | . . . . Uniques/NPCs Destroyed . | . . . . Combat | -11 -10 -10 -10 -------- Run | Yrd Mat Min Exi Hostile Shots Fired 139 | . 18 24 97 Missed 34 | . 6 6 22 Hits 105 | . 12 18 75 Melee 2 | . . . 2 Projectile 103 | . 12 18 73 Critical Strikes 33 | . . . 33 Actively Blocked 5 | . . . 5 Damage Taken 1696 | . 128 260 1308 Core 254 | . 8 18 228 Absorbed by Shields . | . . . . Redirected to Shielding 98 | . 8 28 62 Core Remaining (%) 100 | 100 . . . Volleys Fired 82 | 3 34 12 33 Largest 2 | 2 2 2 2 Hottest 80 | 40 80 80 53 Shots Fired 156 | 6 63 21 66 Gun 99 | 6 32 7 54 Cannon 57 | . 31 14 12 Launcher . | . . . . Special . | . . . . Kinetic 123 | 6 37 14 66 Thermal . | . . . . Explosive . | . . . . Electromagnetic 33 | . 26 7 . Robot Hit Streak 12 | 6 9 11 12 Robot Miss Streak 3 | . 3 2 2 Penetration Max . | . . . . Secondary Targets . | . . . . Shots Hit Robots 97 | 6 27 15 49 Core Hits 38 | 4 15 5 14 Critical Kills . | . . . . Critical Parts Destroyed . | . . . . Critical Strikes . | . . . . Melee Attacks . | . . . . Impact . | . . . . Slashing . | . . . . Piercing . | . . . . Sneak Attacks . | . . . . Combat Hostiles . | . . . . Follow-up Attacks . | . . . . Damage Inflicted 1563 | 64 575 236 688 Guns 955 | 64 253 57 581 Cannons 499 | . 213 179 107 Explosions 109 | . 109 . . Melee . | . . . . Ramming . | . . . . Kinetic 1175 | 64 244 179 688 Thermal 109 | . 109 . . Explosive . | . . . . Electromagnetic 279 | . 222 57 . Impact . | . . . . Slashing . | . . . . Piercing . | . . . . Highest Corruption . | . . . . Average Corruption . | . . . . Corruption Purged . | . . . . Corruption Blocked . | . . . . Overload Shots . | . . . . Overflow Damage . | . . . . Projectiles . | . . . . Explosions . | . . . . Melee . | . . . . Knockbacks 7 | . 3 3 1 Impact . | . . . . Kinetic 7 | . 3 3 1 Secondary . | . . . . Self-Inflicted Damage 11 | . 11 . . Shots 1 | . 1 . . Rammed . | . . . . Targets Rammed . | . . . . Kicked . | . . . . Crushed . | . . . . Highest Temperature 90 | . 90 76 . Average Temperature 34 | . 34 36 . Received Heat Transfer 132 | . 42 90 . Siege Activations . | . . . . Martial Activations . | . . . . Shielding Activations . | . . . . Robots Disrupted . | . . . . Combat Hostiles . | . . . . Robots Corrupted . | . . . . Combat Hostiles . | . . . . Parts Fried . | . . . . Impact Corruptions . | . . . . Robots Melted . | . . . . Combat Hostiles . | . . . . Parts Melted . | . . . . Heat Transferred 150 | . 150 . . Parts Sabotaged . | . . . . Parts Stolen . | . . . . Parts Stripped . | . . . . Power Chain Reactions 2 | . 2 . . Alert | -11 -10 -10 -10 ------- Run | Yrd Mat Min Exi Maximum Alert Level . | . . . . Low Security (%) 100 | 100 100 100 . Level 1 . | . . . . Level 2 . | . . . . Level 3 . | . . . . Level 4 . | . . . . Level 5 . | . . . . High Security . | . . . . Max Security . | . . . . Peak Influence 79 | 5 79 50 . Initial 27 | . . 27 . Average 12 | 1 23 4 . Influence Increases 333 | 10 252 71 . Destroy 0b10 Robot/C 200 | . 140 60 . Destroy 0b10 Robot/NC 40 | 10 30 . . Destroy Leader 48 | . 38 10 . Successful Hack 6 | . 6 . . Disable Machine 15 | . 15 . . Destroy Structure 9 | . 8 1 . Lose Combat Pursuer 15 | . 15 . . Influence Decreases 333 | 10 181 116 26 Entered New Map 70 | . . 44 26 Time Decay 263 | 10 181 72 . Squads Dispatched 4 | . 4 . . Investigation 3 | . 3 . . Extermination . | . . . . Reinforcement 1 | . 1 . . Assault . | . . . . Garrison . | . . . . Intercept . | . . . . Searches Triggered . | . . . . Construction Impeded . | . . . . Haulers Reinforced . | . . . . Active Scanning Responses . | . . . . Cargo Convoy Interrupts . | . . . . Stealth | -11 -10 -10 -10 --------- Run | Yrd Mat Min Exi Distress Signals . | . . . . Communications Jammed . | . . . . Distress Signals . | . . . . Times Spotted 25 | . 12 4 9 Peak Tracking Total 11 | . 5 2 11 Tactical Retreats 2 | . 1 . 1 Traps | -11 -10 -10 -10 ------- Run | Yrd Mat Min Exi Traps Triggered 1 | . 1 . . Indirectly . | . . . . Trap Hack Attempts . | . . . . Triggered . | . . . . Disarmed . | . . . . Reprogrammed . | . . . . Reused . | . . . . Traps Extracted . | . . . . Installed . | . . . . Triggered . | . . . . Machines | -11 -10 -10 -10 ---------- Run | Yrd Mat Min Exi Machines Disabled 6 | . 1 . 5 Max in Single Turn 1 | . 1 . 1 Machines Repaired . | . . . . Machines Dismantled . | . . . . Machines Sabotaged . | . . . . Overloaded Fab Kills . | . . . . Hacking | -11 -10 -10 -10 --------- Run | Yrd Mat Min Exi Machines Accessed 8 | . 2 1 5 Terminals 2 | . 2 . . Fabricators . | . . . . Repair Stations . | . . . . Recycling Units . | . . . . Scanalyzers . | . . . . Garrison Access . | . . . . Total Hacks 56 | . 5 1 50 Successful 54 | . 3 1 50 Failed 1 | . 1 . . Catastrophic 1 | . 1 . . Database Lockouts 1 | . 1 . . Manual 6 | . 5 . 1 Terminals 5 | . 5 . . Fabricators . | . . . . Repair Stations . | . . . . Recycling Units . | . . . . Scanalyzers . | . . . . Garrison Access . | . . . . Terminal Hacks 54 | . 3 1 50 Record 49 | . . . 49 Robot Analysis 3 | . 3 . . Open Door 1 | . . 1 . Proto ID Catalog 1 | . . . 1 Fabricator Hacks . | . . . . Repair Station Hacks . | . . . . Recycling Unit Hacks . | . . . . Scanalyzer . | . . . . Garrison Access Hacks . | . . . . Unauthorized Hacks . | . . . . Terminals . | . . . . Fabricators . | . . . . Repair Stations . | . . . . Recycling Units . | . . . . Scanalyzers . | . . . . Garrison Access . | . . . . Data Cores Recovered . | . . . . Used . | . . . . Hacking Detections 2 | . 2 . . Full Trace Events 2 | . 2 . . Feedback Events . | . . . . Feedback Blocked . | . . . . Robot Schematics Acquired . | . . . . Robots Built . | . . . . Authchips . | . . . . Time . | . . . . Total Robot Build Rating . | . . . . Part Schematics Acquired . | . . . . Parts Built . | . . . . Authchips . | . . . . Time . | . . . . Total Part Build Rating . | . . . . Parts Repaired . | . . . . Time . | . . . . Parts Recycled . | . . . . Recycled Matter . | . . . . Retrieved Matter . | . . . . Retrieved Components . | . . . . Parts Scanalyzed . | . . . . Part Schematics Acquired . | . . . . Parts Damaged . | . . . . Bothacking | -11 -10 -10 -10 ------------ Run | Yrd Mat Min Exi Used RIF Installer . | . . . . Robots Hacked . | . . . . Non-combat . | . . . . Combat . | . . . . Robot Hacks Applied . | . . . . Relay Couplers Released . | . . . . Fabnet Peak Effective % . | . . . . Robots Rewired . | . . . . Allies Hacked . | . . . . Hacks Repelled . | . . . . Allies | -11 -10 -10 -10 -------- Run | Yrd Mat Min Exi Total Allies . | . . . . Largest Group . | . . . . Highest-Rated Group . | . . . . Highest-Rated Ally . | . . . . Total Orders . | . . . . Ally Attacks . | . . . . Total Damage . | . . . . Kills . | . . . . Allies Corrupted . | . . . . Allies Melted . | . . . . Intel | -11 -10 -10 -10 ------- Run | Yrd Mat Min Exi Active Infowar (turns) 1098 | 19 598 481 . Sensors 481 | . . 481 . Seismic 617 | 19 598 . . Robot Analysis Total 3 | . 3 . . Derelict Logs Recovered 2 | . . 2 . Drone Launches . | . . . . Drone Recoveries . | . . . . Exploration | -11 -10 -10 -10 ------------- Run | Yrd Mat Min Exi Turns Passed 4247 | 89 678 900 2580 Spaces Moved 2359 | 44 311 515 1489 Core 3 | 3 . . . Treads 2356 | 41 311 515 1489 Legs . | . . . . Wheels . | . . . . Hover . | . . . . Flight . | . . . . Fastest Speed 50 | 50 160 160 160 Average Speed 160 | 152 160 160 160 Slowest Speed 240 | 160 160 160 240 Overloaded Moves . | . . . . Propulsion Burnouts . | . . . . Robots Hopped . | . . . . Potential Cave-ins . | . . . . Cave-ins Triggered . | . . . . Exploration Rate (%) 56 | 4 59 90 71 Regions Visited 3 Branch Regions 2 Pre-discovered Areas 2 | . . 1 1 Known Exits Taken . | . . . . Unknown Exits Taken 3 | 1 1 1 . Scrap Searched 1 | . . 1 . Spaces Dug . | . . . . Terrain Destroyed 6 | . 6 . . Melee . | . . . . Projectile . | . . . . AOE 6 | . 6 . . Terrain Rammed . | . . . . Walls Destroyed . | . . . . Machines Disabled . | . . . . Actions | -11 -10 -10 -10 --------- Run | Yrd Mat Min Exi Total 2683 | 57 429 570 1627 Wait 112 | . 57 24 31 Move 2356 | 43 310 514 1489 Hop . | . . . . Pick Up 55 | 4 15 6 30 Fast Attach 8 | 7 . 1 . Attach 13 | . . 1 12 Detach 1 | . . . 1 Swap 13 | . 7 6 . Drop 43 | . 6 6 31 Fire 82 | 3 34 12 33 Melee . | . . . . Ram . | . . . . Kick . | . . . . Crush . | . . . . Escape Stasis . | . . . . Rewire . | . . . . Trap . | . . . . Miscellaneous . | . . . . Route ------- -11/Scrapyard -10/Materials (discovered 2 exits: [*Mat] / *Min) -10/Mines (discovered 3 exits: [*Mat] / *Exi / [*Sub]) -10/Exiles (discovered 1 exit: [*Min]) History --------- Turn | Location | Event 9 | -11/Scrapyard | Discovered new exit (range 15) 90 | -11/Scrapyard | Entered Materials 209 | -10/Materials | Central database locked down 315 | -10/Materials | Build established: Mutant 629 | -10/Materials | Discovered new exit (range 8) 757 | -10/Materials | Discovered new exit (range 6) 768 | -10/Materials | Entered Mines 821 | -10/Mines | Met a Derelict bent on vengeance 903 | -10/Mines | Found DCF Scrap (11 items) 985 | -10/Mines | Discovered new exit (range 6) 1086 | -10/Mines | Discovered new exit (range 5) 1102 | -10/Mines | Learned Materials security intel 1108 | -10/Mines | Learned location of Recycling (-8) 1128 | -10/Mines | Found a hidden stash of uninstalled traps 1457 | -10/Mines | Found the Drone Emporium 1662 | -10/Mines | Deemed a non-threat by the Exiles lab entrance 1662 | -10/Mines | Discovered new exit (range 5) 1668 | -10/Mines | Entered Exiles 1695 | -10/Exiles | Discovered new exit (range 15) 1710 | -10/Exiles | Met 8R-AWN 1736 | -10/Exiles | Met EX-HEX 1822 | -10/Exiles | Met EX-DEC 1864 | -10/Exiles | Learned location of Zion (-7) 2045 | -10/Exiles | Met EX-BIN 2685 | -10/Exiles | Aligned with FarCom system 2687 | -10/Exiles | Given EX-Vault access code 2752 | -10/Exiles | Opened EX-Vault 2777 | -10/Exiles | Found Flying Fortress v7 2788 | -10/Exiles | Found AWS/Gauss 2821 | -10/Exiles | Warned to stay clear of 0b10 Research branches 3070 | -10/Exiles | Found Cloak of Protection 4029 | -10/Exiles | Attacked by the Exiles 4145 | -10/Exiles | Core integrity fell below 50% 4211 | -10/Exiles | Core integrity fell below 20% 4237 | -10/Exiles | Lost 8 parts (1p2n3u2w) 4248 | -10/Exiles | Destroyed by 8R-AWN with 8R-AWN's Boregun Last Messages --------------- 04231_ HV Slug penetrates Machine. 04231_ Machine disabled. 04231_ Penetrated by HV Slug. 04231_ HV Slug penetrates Wall. 04232_ Acquired 7 matter. 04234_ Acquired 4 matter. 04236_ HV Slug penetrates Wall. 04236_ HV Slug penetrates Machine. 04236_ Machine disabled. 04236_ HV Slug penetrates Wall. 04240_ Penetrated by HV Slug. 04240_ HV Slug penetrates Wall. 04240_ Penetrated by HV Slug. 04240_ HV Slug penetrates Wall. 04244_ Penetrated by HV Slug. 04244_ HV Slug penetrates Wall. 04244_ Penetrated by HV Slug. 04244_ HV Slug penetrates Wall. 04247_ Dropped AWS/Gauss. 04248_ Penetrated by HV Slug. Map ----- +----------------------------------------------------+ | ?????????????????????????????????????????????????? | | ?????????????????????????????????????????????????? | | ?????????????????????????????????????????????????? | | ?????????????????????????????????????????????????? | | ?????????????????????????????????????????????????# | | ?????????????????????????????????????????????????# | | ?????????????????????????????????????????????????# | | ?????????????????????????????????????????????????# | | ?????????????????????????????????????????????????# | | ?????????????????????????????????????????????????# | | ?????????????????????????????????????????????????# | | ?????????????????????????????????????????????????# | | ???? ??????????????????????????????????????????? | | ????# ?????????????????????????????????????????"" | | ????# ??????????????????????????????????????#"" | | ?????# ?????????????#######??????????????????? | | ?????# #######??????#!!! "#??????????????????? | | ?????# #""##?????# "#??????????????????? | | ??????# #?????# "#??????????????????? | | ??????##" ####?## " #??????????########? | | ??????#"" #;###" ""#??????????# """#? | | ????????## ##" ""#??????????#"" """#? | | ?????????## ; " #????????????#"" #? | | ??????????#"## #????????????#"" #? | | ??????????#??#### ##???????????#"" "#? | | ????????????????#"# @ #???????????# ""#? | | ??????????######## ###?????????#"" ""#? | | ??????????# !!"""" ##????????### ###? | | ??????????#! =! g ### " ;"""#???### ###? | | ??????????#! !! #?##" #####X# #"## | | ??????????#! "#??#" % % """ | | ??????????# !"""" ""# #?#"# %% % "" | | ??????????######;#"# # #?###; | | ??????????????# ## # # ????### | | ??????????????##? ## ## #?????### % | | ????????????????##?# #? ???????## | | ???????????????????# #?# #???????#; | | ???????????????????# #?? #????????##" | | ???????????????????# #??##?????????#""" | | ???????????????????? #????????????##" | | ???????????????????? #????????????#"" | | ???????????????????? ????????????##""" " | | ???????????????????? ????????????#""" "" | | ???????????????????? ????????????#""" " | | ???????????????????? ????????????#"" | | ???????????????????? ????????????#""" | | ?????????????????????????????????#"" | | ?????????????????????????????????##"" | | ??????????????????????????????????#"""" | | ??????????????????????????????????## | +----------------------------------------------------+ Best States ------------- Heat Dissipation 25 Energy Generation 10 Energy Capacity 250 Matter Stores 300 Matter Capacity 300 Sight Range 16 Robot Scan Range 14 Terrain Scan Density 10 Armor Coverage 150 Core Shielding 20 Propulsion Shielding 33 Evasion (%) 40 Recoil Reduction 2 Item Schematics ----------------- None Robot Schematics ------------------ None Fabricated ------------ Nothing Repaired ---------- Nothing Alien Tech Used ----------------- None Achievements -------------- None Challenges ------------ None Game ------ Seed AblativeCannonShockpuncher Manual? 0 Play Time 00:33:55 Cumulative 79.3 hours Start 2025.06.02 @ 21:56:03 End 2025.06.02 @ 22:38:50 Sessions 1 Manual Loads 0 Difficulty Rogue Special Mode None Game No. 54 Rogue 54 Adventurer 0 Explorer 0 Win Type - Total 0 Types 0/0/0/0/0/0/0/0/0/0 Lore% 36 Gallery% 44 Achievement% 41 Wizard Run 0 Options --------- Layout 2 ASCII 0 Keyboard 0 Movement Numpad Keybinds 0 Fullscreen 0 Font 24/Proggy Map View 59x48 Zoom Use 0% Tactical HUD 1 Map Filters NONE Filters NONE Steam 1 RUN: 2d9e19ce-4ca0-4cac-9224-44a5a46a0721